bitfinex/quotes_SOLUSD_20240616
["timestamp","ask_amount","ask_price","bid_price","bid_amount"]
[1718547790998,0.68,146.65,146.63,5.0467]
[1718547791291,6.16,146.65,146.63,7.5699]
[1718547791467,0.68,146.65,146.63,7.5699]
[1718547792182,2.5227,146.67,146.58,6.3733]
[1718547792378,106.2085,146.72,146.63,5.48]
[1718547792379,10.0887,146.7,146.63,5.48]
[1718547792582,8.0025,146.68,146.63,5.48]
[1718547792799,5.48,146.68,146.66,2.5228]
[1718547792975,8.0025,146.68,146.65,7.5686]
[1718547793175,13.0475,146.68,146.65,7.5686]
[1718547793578,20.615,146.68,146.65,2.5228]
[1718547793790,13.0475,146.68,146.65,7.5687]
[1718547794404,7.5675,146.68,146.65,7.5687]
[1718547794576,0.34,146.67,146.65,7.5687]
[1718547796392,0.34,146.67,146.65,2.5228]
[1718547796700,0.34,146.67,146.65,7.5688]
[1718547796880,5.3853,146.67,146.62,15.4276]
[1718547797096,2.6928,146.66,146.63,2.5232]
[1718547797409,2.6928,146.66,146.63,7.5697]
[1718547797710,8.1728,146.66,146.63,7.5697]
[1718547797879,2.6928,146.66,146.63,7.5697]
[1718547798078,0.17,146.66,146.63,5.0465]
[1718547798607,2.6928,146.66,146.64,2.5231]
[1718547798906,0.17,146.66,146.64,2.5231]
[1718547799199,0.17,146.66,146.64,7.5694]
[1718547799808,0.17,146.66,146.64,2.5231]
[1718547800494,0.17,146.66,146.64,7.5694]
[1718547801205,0.17,146.66,146.64,5.0463]
[1718547801519,0.17,146.66,146.64,7.5693]
[1718547804892,22.8761,146.66,146.62,15.4276]
[1718547805194,22.8761,146.66,146.62,2.5235]
[1718547805195,10.526,146.65,146.62,2.5235]
[1718547805410,3.0332,146.64,146.61,7.5706]
[1718547805603,0.51,146.64,146.62,2.5234]
[1718547805910,0.51,146.64,146.63,2.5233]
[1718547806983,0.51,146.64,146.62,7.5703]
[1718547807595,0.51,146.64,146.62,2.5234]
[1718547808717,0.51,146.64,146.62,7.5704]
[1718547812314,8.5131,146.64,146.62,2.5234]
[1718547812531,8.5131,146.64,146.61,5.0471]
[1718547812532,5.99,146.64,146.61,5.0471]
[1718547812823,13.0501,146.63,146.6,7.5713]
[1718547813036,13.0501,146.63,146.61,2.5236]
[1718547813037,8.0034,146.63,146.61,2.5236]
[1718547813196,5.48,146.63,146.61,7.5709]
[1718547814092,5.48,146.63,146.61,5.0473]
[1718547814292,5.48,146.63,146.61,7.5708]
[1718547814718,5.48,146.63,146.61,5.0473]
[1718547816525,5.48,146.63,146.58,15.2579]
[1718547816705,23.3891,146.64,146.61,7.571]
[1718547816706,5.99,146.62,146.61,7.571]
[1718547816905,5.99,146.62,146.61,2.5236]
[1718547817100,5.99,146.62,146.61,7.571]
[1718547818605,0.51,146.62,146.61,7.571]
[1718547818805,5.99,146.62,146.61,7.571]
[1718547820038,0.51,146.62,146.61,7.571]
[1718547822825,0.51,146.62,146.61,2.5236]
[1718547823506,5.99,146.62,146.61,2.5236]
[1718547824843,5.99,146.62,146.6,5.0475]
[1718547825132,5.65,146.61,146.59,7.5719]
[1718547825342,5.65,146.61,146.54,22.1925]
[1718547825343,0.17,146.59,146.57,5.0484]
[1718547825507,5.82,146.59,146.57,7.5726]
[1718547825707,5.65,146.58,146.57,7.5726]
[1718547825922,5.99,146.58,146.54,16.0793]
[1718547826228,5.99,146.58,146.5,6.3867]
[1718547826229,0.34,146.57,146.56,2.5245]
[1718547826445,0.34,146.57,146.55,2.5247]
[1718547826446,0.17,146.56,146.55,2.5247]
[1718547826636,5.82,146.56,146.54,5.0495]
[1718547826845,0.17,146.55,146.54,7.5742]
[1718547827006,0.34,146.55,146.54,7.5742]
[1718547827812,5.65,146.57,146.52,5.48]
[1718547828014,0.17,146.57,146.56,7.5736]
[1718547828309,0.17,146.57,146.5,22.466]
[1718547828613,0.17,146.57,146.56,7.5736]
[1718547829322,0.34,146.58,146.57,2.5243]
[1718547829523,0.34,146.58,146.56,7.5735]
[1718547829955,8.174,146.59,146.56,5.0491]
[1718547830126,5.48,146.63,146.57,5.48]
[1718547830322,23.1427,146.64,146.61,2.5236]
[1718547830546,13.0496,146.64,146.61,7.5709]
[1718547831832,20.6192,146.64,146.61,2.5236]
[1718547832153,2.5234,146.63,146.6,7.5712]
[1718547832329,7.5701,146.63,146.6,7.5712]
[1718547833236,15.1401,146.63,146.6,7.5712]
[1718547833461,2.5235,146.62,146.6,2.5237]
[1718547833827,5.48,146.63,146.55,22.466]
[1718547834025,13.0502,146.63,146.6,2.5238]
[1718547834230,8.0034,146.63,146.61,2.5236]
[1718547834429,2.5234,146.63,146.61,2.5236]
[1718547834653,7.5701,146.63,146.6,7.5713]
[1718547834959,2.5234,146.63,146.6,7.5713]
[1718547835253,7.5697,146.64,146.61,7.5708]
[1718547835662,12.616,146.64,146.6,5.0475]
[1718547835836,12.616,146.64,146.59,5.48]
[1718547835837,25.2322,146.64,146.61,7.5709]
[1718547836021,2.5235,146.62,146.56,45.0]
[1718547836221,7.5703,146.63,146.6,2.5238]
[1718547836436,17.6652,146.62,146.55,22.466]
[1718547836647,2.6936,146.62,146.6,2.5238]
[1718547837268,2.6936,146.62,146.59,5.0479]
[1718547837269,2.6936,146.62,146.59,7.5717]
[1718547837436,7.7406,146.62,146.59,7.5717]
[1718547838057,7.9102,146.63,146.6,7.5715]
[1718547838441,2.8634,146.63,146.6,5.0477]
[1718547838646,12.9568,146.63,146.6,7.5714]
[1718547838867,15.4803,146.63,146.6,7.5714]
[1718547839266,15.4803,146.63,146.59,2.5239]
[1718547839267,5.0471,146.62,146.59,2.5239]
[1718547839566,7.9111,146.61,146.58,7.5722]
[1718547839931,15.4822,146.61,146.58,7.5722]
[1718547840140,2.5238,146.6,146.58,7.5722]
[1718547840338,12.9585,146.61,146.58,7.5722]
[1718547840339,2.8638,146.61,146.58,5.0482]
[1718547840541,2.8637,146.61,146.58,7.5723]
[1718547840746,2.8637,146.61,146.58,5.0483]
[1718547840944,5.3874,146.61,146.56,5.48]
[1718547841256,7.7416,146.6,146.57,2.5242]
[1718547841440,7.7416,146.6,146.55,22.466]
[1718547841441,0.34,146.61,146.58,2.524]
[1718547841649,12.9586,146.61,146.58,7.5722]
[1718547841852,0.17,146.6,146.58,2.524]
[1718547842530,0.17,146.6,146.58,7.5723]
[1718547843930,12.9596,146.6,146.57,2.5243]
[1718547844131,13.3923,146.59,146.56,2.5244]
[1718547844344,13.3923,146.59,146.56,7.5734]
[1718547844561,0.17,146.58,146.57,7.573]
[1718547844781,0.17,146.58,146.55,16.0793]
[1718547844782,0.17,146.58,146.56,7.5733]
[1718547845086,0.17,146.58,146.57,2.5243]
[1718547845392,0.17,146.58,146.56,5.0489]
[1718547845393,0.17,146.58,146.56,7.5733]
[1718547845880,0.17,146.58,146.57,2.5243]
[1718547846579,0.17,146.58,146.56,7.5733]
[1718547846877,0.34,146.58,146.56,2.5244]
[1718547847065,2.8642,146.58,146.56,2.5244]
[1718547847892,0.34,146.58,146.56,7.5734]
[1718547848192,0.34,146.58,146.56,5.049]
[1718547848510,0.34,146.58,146.56,7.5734]
[1718547849366,0.17,146.57,146.56,2.5244]
[1718547849761,0.17,146.57,146.56,7.5735]
[1718547850180,5.82,146.58,146.56,7.5735]
[1718547850372,8.0044,146.57,146.54,5.0496]
[1718547850562,5.99,146.56,146.54,2.5248]
[1718547850762,8.5145,146.56,146.54,2.5248]
[1718547851368,8.5145,146.56,146.53,5.05]
[1718547851888,8.5145,146.56,146.53,7.5749]
[1718547852194,8.0047,146.55,146.52,5.0503]
[1718547852394,0.34,146.54,146.52,5.0503]
[1718547852606,0.34,146.54,146.47,14.33145067]
[1718547852607,5.82,146.54,146.47,14.33145067]
[1718547852895,5.82,146.54,146.52,2.5252]
[1718547853099,5.82,146.54,146.52,7.5756]
[1718547853309,7.9148,146.54,146.51,7.5759]
[1718547853596,5.65,146.53,146.51,5.0506]
[1718547853794,0.34,146.52,146.51,7.5759]
[1718547854001,0.51,146.52,146.51,2.5253]
[1718547854171,0.51,146.52,146.51,7.5761]
[1718547854369,5.48,146.54,146.47,22.2205]
[1718547854576,5.65,146.55,146.53,2.5249]
[1718547854898,0.68,146.54,146.52,5.0503]
[1718547855096,0.68,146.54,146.53,7.5751]
[1718547855306,0.17,146.53,146.47,22.2205]
[1718547855609,5.65,146.53,146.51,7.5759]
[1718547855776,0.17,146.53,146.51,5.0507]
[1718547856180,0.17,146.53,146.51,7.5759]
[1718547856478,8.175,146.53,146.51,2.5254]
[1718547856671,0.51,146.52,146.51,2.5254]
[1718547857404,0.51,146.52,146.51,7.5762]
[1718547857706,0.17,146.52,146.51,7.5762]
[1718547857906,0.34,146.53,146.52,7.5757]
[1718547858203,0.17,146.54,146.53,2.525]
[1718547858587,0.17,146.54,146.52,7.5756]
[1718547859699,0.17,146.54,146.52,2.5251]
[1718547860074,0.17,146.54,146.52,7.5755]
[1718547860607,23.1523,146.56,146.47,22.2205]
[1718547860608,2.5244,146.57,146.54,5.0496]
[1718547860809,7.5732,146.57,146.54,7.5743]
[1718547861106,2.5246,146.56,146.53,10.5299]
[1718547861400,2.5246,146.56,146.53,2.525]
[1718547861401,15.1476,146.56,146.53,2.525]
[1718547861704,2.5247,146.55,146.52,7.5753]
[1718547862091,2.5247,146.55,146.52,5.0502]
[1718547862480,2.6949,146.54,146.52,2.5252]
[1718547862681,2.6949,146.54,146.51,2.5253]
[1718547862682,8.0847,146.54,146.51,2.5253]
[1718547862905,13.5647,146.54,146.51,7.576]
[1718547863315,0.51,146.54,146.53,2.525]
[1718547864107,0.51,146.54,146.53,7.5751]
[1718547864714,0.51,146.54,146.53,2.525]
[1718547864917,15.1506,146.53,146.5,5.051]
[1718547865103,3.0349,146.54,146.52,2.5252]
[1718547865618,3.0349,146.54,146.51,7.5758]
[1718547865802,3.0349,146.54,146.52,7.5756]
[1718547865803,0.51,146.54,146.52,7.5756]
[1718547867493,3.0349,146.54,146.52,2.5252]
[1718547867698,3.0349,146.54,146.51,7.5758]
[1718547868391,8.5149,146.54,146.51,5.0506]
[1718547868790,3.0349,146.54,146.51,5.0506]
[1718547869012,0.51,146.54,146.52,7.5755]
[1718547869720,8.0847,146.54,146.51,7.5759]
[1718547869926,0.51,146.54,146.52,2.5251]
[1718547870225,3.0349,146.54,146.52,2.5251]
[1718547870436,0.51,146.54,146.52,7.5755]
[1718547870908,3.0349,146.54,146.52,2.5251]
[1718547871920,8.0847,146.54,146.51,7.5758]
[1718547872113,8.0847,146.54,146.52,2.5252]
[1718547872324,8.0847,146.54,146.51,7.5759]
[1718547872530,0.17,146.53,146.49,5.48]
[1718547872818,13.2254,146.53,146.5,7.5766]
[1718547873122,13.2254,146.53,146.51,2.5254]
[1718547873123,0.51,146.52,146.51,2.5254]
[1718547873693,0.51,146.52,146.51,7.5762]
[1718547873892,0.34,146.52,146.51,7.5762]
[1718547874097,0.34,146.52,146.5,5.48]
[1718547874098,0.17,146.54,146.5,5.48]
[1718547874416,0.68,146.54,146.53,2.525]
[1718547874619,12.12363048,146.59,146.56,2.5244]
[1718547874819,12.12363048,146.59,146.56,5.049]
[1718547874820,2.5241,146.59,146.56,5.049]
[1718547875032,2.524,146.59,146.57,2.5243]
[1718547875204,22.7164,146.59,146.56,2.5244]
[1718547875402,2.5243,146.58,146.55,10.5292]
[1718547875598,2.5243,146.58,146.55,13.0537]
[1718547876003,7.5724,146.59,146.56,2.5244]
[1718547876203,28.1955,146.6,146.57,2.5243]
[1718547876430,2.524,146.59,146.57,2.5243]
[1718547877375,10.0968,146.58,146.54,2.5247]
[1718547877530,10.0968,146.58,146.52,21.44108871]
[1718547877531,2.5246,146.56,146.52,21.44108871]
[1718547877834,2.5246,146.56,146.53,2.525]
[1718547878018,7.5737,146.56,146.53,7.5749]
[1718547878217,5.0491,146.56,146.52,15.96108871]
[1718547878436,13.5642,146.55,146.52,7.66618871]
[1718547878640,0.51,146.55,146.53,7.575]
[1718547879012,0.51,146.55,146.52,0.09078871]
[1718547879329,0.51,146.55,146.54,7.5747]
[1718547879633,0.34,146.55,146.54,7.5747]
[1718547880205,8.1744,146.57,146.55,2.5247]
[1718547880411,0.17,146.56,146.55,2.5247]
[1718547880627,0.51,146.56,146.55,2.5247]
[1718547880938,0.51,146.56,146.54,7.5746]
[1718547881437,2.5247,146.55,146.53,2.5249]
[1718547882141,31.2356,146.56,146.53,2.5249]
[1718547882337,0.51,146.56,146.54,5.0496]
[1718547882530,3.0345,146.56,146.54,2.5248]
[1718547882711,0.51,146.56,146.54,7.5746]
[1718547883717,3.0345,146.56,146.54,2.5248]
[1718547884922,8.0836,146.56,146.53,7.5749]
[1718547885414,2.5247,146.55,146.53,2.5249]
[1718547885732,2.525,146.54,146.52,0.09078871]
[1718547886057,5.99,146.56,146.52,0.09078871]
[1718547886058,31.2406,146.53,146.52,0.09078871]
[1718547886214,31.4106,146.53,146.52,0.09078871]
[1718547887123,13.7351,146.53,146.52,0.09078871]
[1718547887427,21.3103,146.53,146.52,0.09078871]
[1718547887624,6.2797,146.58,146.52,0.09078871]
[1718547887828,7.5741,146.55,146.53,2.525]
[1718547888022,2.5247,146.55,146.53,2.525]
[1718547888218,7.5741,146.55,146.52,5.14098871]
[1718547888448,7.5741,146.55,146.52,7.66608871]
[1718547888751,2.525,146.54,146.52,0.09078871]
[1718547888932,2.5249,146.54,146.52,2.61588871]
[1718547889253,5.0496,146.55,146.52,7.66618871]
[1718547889412,3.0349,146.54,146.52,7.66618871]
[1718547889964,0.51,146.54,146.52,5.14108871]
[1718547890135,25.2429,146.58,146.55,2.5246]
[1718547890462,28.1986,146.58,146.55,7.5739]
[1718547890629,2.5244,146.57,146.55,7.5739]
[1718547891338,0.17,146.57,146.53,5.48]
[1718547891644,3.2044,146.57,146.55,2.5246]
[1718547891848,2.5245,146.56,146.54,7.5742]
[1718547892044,7.5736,146.56,146.53,5.0499]
[1718547892355,7.5742,146.55,146.52,2.61588871]
[1718547892572,2.8647,146.55,146.53,2.525]
[1718547892743,2.8647,146.55,146.53,7.5751]
[1718547893439,7.9142,146.55,146.52,5.14108871]
[1718547893664,0.17,146.54,146.52,10.62108871]
[1718547894051,0.17,146.54,146.52,5.57078871]
[1718547894257,0.17,146.54,146.53,2.525]
[1718547894962,2.695,146.54,146.52,2.61598871]
[1718547895168,0.17,146.54,146.52,7.66638871]
[1718547895367,2.6949,146.54,146.52,7.66638871]
[1718547895667,0.17,146.54,146.53,2.525]
[1718547898243,0.17,146.54,146.53,7.5751]
[1718547898972,0.17,146.54,146.53,2.525]
[1718547899765,0.17,146.54,146.52,7.66608871]
[1718547899978,0.17,146.54,146.53,2.525]
[1718547900671,0.17,146.54,146.53,7.5751]
[1718547901968,0.17,146.54,146.53,2.525]
[1718547902469,0.17,146.54,146.53,7.5751]
[1718547903156,0.17,146.53,146.52,0.09078871]
[1718547903361,0.34,146.53,146.52,0.09078871]
[1718547903569,0.68,146.53,146.52,0.09078871]
[1718547904373,3.205,146.53,146.52,0.09078871]
[1718547904547,0.68,146.53,146.52,0.09078871]
[1718547905254,25.9306,146.53,146.52,0.09078871]
[1718547905449,31.4106,146.53,146.52,0.09078871]
[1718547906486,23.8354,146.53,146.5,5.0511]
[1718547906660,0.17,146.51,146.5,7.5766]
[1718547906856,0.34,146.51,146.5,7.5766]
[1718547907059,0.68,146.51,146.5,7.5766]
[1718547907474,0.68,146.51,146.5,2.5255]
[1718547907864,0.68,146.51,146.5,7.5766]
[1718547908981,6.16,146.51,146.46,16.0633]
[1718547909180,0.17,146.49,146.46,16.0633]
[1718547909484,0.34,146.49,146.48,2.5259]
[1718547909684,0.68,146.49,146.48,7.5777]
[1718547910269,0.68,146.49,146.46,21.5433]
[1718547910270,115.1573,146.55,146.46,16.0633]
[1718547910589,2.5251,146.53,146.51,2.5252]
[1718547911090,2.525,146.53,146.51,7.5761]
[1718547911273,7.5752,146.53,146.5,7.5764]
[1718547911475,2.525,146.53,146.51,2.5253]
[1718547911676,0.51,146.52,146.51,2.5253]
[1718547912686,17.6785,146.51,146.48,2.5258]
[1718547912878,0.68,146.5,146.49,2.5257]
[1718547913975,0.68,146.5,146.48,7.5774]
[1718547914186,3.2056,146.5,146.48,7.5774]
[1718547914370,0.68,146.5,146.48,7.5774]
[1718547914690,0.68,146.5,146.49,2.5257]
[1718547915290,3.2056,146.5,146.47,2.526]
[1718547915585,3.2056,146.5,146.48,2.5259]
[1718547916073,0.68,146.5,146.49,2.5257]
[1718547917268,0.68,146.5,146.48,7.5776]
[1718547918097,0.68,146.5,146.48,7.5775]
[1718547920992,0.68,146.5,146.48,5.0518]
[1718547921301,0.68,146.5,146.48,7.5775]
[1718547922697,0.68,146.5,146.46,21.5433]
[1718547922871,0.68,146.5,146.48,2.5257]
[1718547923072,0.68,146.5,146.48,7.5774]
[1718547923900,0.68,146.5,146.49,2.5257]
[1718547924193,0.51,146.5,146.49,7.5772]
[1718547924368,7.5738,146.56,146.49,5.48]
[1718547924565,2.5243,146.58,146.56,2.5245]
[1718547924990,2.5243,146.58,146.56,7.5736]
[1718547925175,15.1454,146.58,146.55,7.5737]
[1718547925604,2.5243,146.57,146.55,7.5737]
[1718547925771,2.5243,146.57,146.55,2.5246]
[1718547925972,0.51,146.56,146.55,2.5246]
[1718547926195,0.51,146.56,146.54,7.5743]
[1718547926378,23.2313,146.56,146.53,2.5249]
[1718547926581,8.0839,146.56,146.54,2.5248]
[1718547926981,3.0346,146.56,146.54,2.5248]
[1718547927391,25.4176,146.55,146.52,7.5753]
[1718547927594,3.0349,146.54,146.52,7.5753]
[1718547928193,5.48,146.55,146.53,2.525]
[1718547928498,2.6946,146.56,146.54,2.5248]
[1718547928688,0.51,146.55,146.53,7.5749]
[1718547928892,0.51,146.55,146.54,2.5249]
[1718547929081,30.7247,146.57,146.54,7.5746]
[1718547929288,0.51,146.56,146.54,7.5746]
[1718547929587,3.0345,146.56,146.54,7.5746]
[1718547929791,0.51,146.56,146.54,7.5746]
[1718547930196,3.0345,146.56,146.54,7.5746]
[1718547930805,8.0836,146.56,146.54,2.5249]
[1718547931118,2.5247,146.55,146.53,7.5749]
[1718547931394,10.6084,146.56,146.52,5.0502]
[1718547931604,25.2476,146.55,146.52,7.5753]
[1718547931783,2.5249,146.54,146.52,7.5753]
[1718547932104,25.2476,146.55,146.52,7.5753]
[1718547932502,7.5744,146.55,146.53,2.525]
[1718547932703,2.5248,146.55,146.53,2.525]
[1718547933285,7.5742,146.55,146.53,2.525]
[1718547933504,7.5742,146.55,146.52,7.5753]
[1718547933704,3.0349,146.54,146.52,7.5756]
[1718547934387,0.51,146.54,146.51,15.1629]
[1718547934588,0.51,146.54,146.52,7.5754]
[1718547934794,0.51,146.54,146.53,2.525]
[1718547935509,0.34,146.54,146.53,2.525]
[1718547935706,7.7439,146.56,146.54,2.5248]
[1718547936012,0.51,146.55,146.54,2.5248]
[1718547936302,10.0967,146.59,146.53,5.48]
[1718547936520,2.5237,146.61,146.59,2.5239]
[1718547936688,2.5237,146.61,146.59,7.5718]
[1718547936882,22.7119,146.62,146.59,7.5719]
[1718547936883,25.2355,146.62,146.59,7.5719]
[1718547937086,2.5237,146.61,146.59,7.5719]
[1718547937301,7.5707,146.62,146.6,2.5238]
[1718547937507,7.5707,146.62,146.54,45.0]
[1718547937508,7.5707,146.62,146.59,5.0478]
[1718547937693,2.5237,146.61,146.59,7.572]
[1718547938105,2.5237,146.61,146.59,5.048]
[1718547938284,15.1416,146.62,146.59,5.048]
[1718547938493,2.5237,146.61,146.59,7.5719]
[1718547938993,5.0472,146.62,146.59,5.048]
[1718547939199,2.5237,146.61,146.59,2.5239]
[1718547939383,28.1908,146.63,146.6,2.5238]
[1718547939581,2.5236,146.62,146.6,2.5238]
[1718547939787,2.5231,146.65,146.63,2.5233]
[1718547940187,7.5688,146.66,146.63,5.0466]
[1718547940512,2.5228,146.66,146.64,2.5231]
[1718547940681,7.5681,146.67,146.65,2.5229]
[1718547940885,7.5681,146.67,146.64,2.523]
[1718547941512,2.5227,146.67,146.65,2.5229]
[1718547941689,7.568,146.67,146.65,2.5229]
[1718547941887,2.5232,146.64,146.62,2.5234]
[1718547942102,7.5695,146.64,146.62,2.5234]
[1718547942320,2.5232,146.64,146.62,2.5234]
[1718547942502,7.5692,146.65,146.63,2.5233]
[1718547943016,2.5231,146.65,146.63,2.5233]
[1718547943213,31.2191,146.66,146.63,2.5233]
[1718547943514,2.863,146.65,146.63,2.5233]
[1718547944016,0.34,146.65,146.63,2.5233]
[1718547944994,0.34,146.65,146.64,2.5231]
[1718547945195,0.51,146.65,146.64,2.5231]
[1718547945704,3.033,146.65,146.63,2.5232]
[1718547946491,0.51,146.65,146.63,2.5232]
[1718547947116,3.033,146.65,146.63,2.5232]
[1718547947414,0.51,146.65,146.63,2.5232]
[1718547947788,3.033,146.65,146.63,2.5232]
[1718547948016,0.51,146.65,146.63,2.5232]
[1718547948222,3.033,146.65,146.63,2.5232]
[1718547948514,5.99,146.65,146.59,6.4825]
[1718547948712,8.1732,146.64,146.62,2.5234]
[1718547949012,13.2196,146.64,146.62,2.5235]
[1718547949314,8.1732,146.64,146.62,2.5235]
[1718547949520,8.3433,146.63,146.61,2.5235]
[1718547949705,8.3433,146.63,146.59,6.4825]
[1718547949706,5.82,146.63,146.59,6.4825]
[1718547950020,5.82,146.63,146.61,2.5235]
[1718547950206,10.8668,146.63,146.59,6.4825]
[1718547950412,2.6935,146.62,146.57,15.6148]
[1718547950597,8.1735,146.62,146.6,2.5238]
[1718547950793,2.5239,146.6,146.58,2.5241]
[1718547951112,5.48,146.6,146.58,2.5241]
[1718547951303,5.48,146.6,146.57,15.6148]
[1718547951509,5.48,146.6,146.59,2.524]
[1718547951822,5.99,146.6,146.59,2.524]
[1718547952412,0.51,146.6,146.59,2.524]
[1718547953987,3.0339,146.6,146.57,15.6148]
[1718547954194,5.99,146.6,146.59,2.524]
[1718547955327,0.51,146.6,146.59,2.524]
[1718547955504,7.06708452,146.65,146.59,5.48]
[1718547955701,5.48,146.64,146.63,2.5232]
[1718547956096,2.5233,146.63,146.61,2.5236]
[1718547956310,8.0033,146.63,146.61,2.5236]
[1718547956620,2.5234,146.63,146.61,2.5236]
[1718547956931,8.0033,146.63,146.61,2.5236]
[1718547957108,5.48,146.63,146.62,2.5235]
[1718547957413,5.48,146.63,146.57,21.0948]
[1718547957414,0.51,146.63,146.61,2.5235]
[1718547957620,0.51,146.62,146.61,2.5235]
[1718547958123,30.8822,146.64,146.58,5.48]
[1718547958124,5.65,146.64,146.58,5.48]
[1718547958330,2.5228,146.67,146.6,5.48]
[1718547958513,13.0484,146.66,146.64,2.523]
[1718547958697,8.0028,146.66,146.64,2.523]
[1718547958896,13.0491,146.65,146.63,2.5232]
[1718547959196,13.0491,146.65,146.62,2.5234]
[1718547959197,28.1872,146.65,146.62,2.5234]
[1718547959395,25.2291,146.66,146.63,2.5233]
[1718547959623,3.203,146.65,146.63,2.5232]
[1718547959802,0.17,146.63,146.61,2.5236]
[1718547959993,5.48,146.62,146.61,2.5236]
[1718547960198,5.99,146.62,146.6,2.5237]
[1718547960397,5.99,146.62,146.61,2.5237]
[1718547960398,5.48,146.62,146.61,2.5237]
[1718547960622,5.99,146.62,146.6,2.5237]
[1718547960817,5.82,146.62,146.61,2.5237]
[1718547961003,5.99,146.62,146.61,2.5237]
[1718547961504,5.99,146.62,146.58,0.09020702]
[1718547961815,5.48,146.6,146.59,2.5239]
[1718547962005,5.99,146.6,146.59,2.5239]
[1718547962209,0.51,146.6,146.58,0.09020702]
[1718547962404,0.51,146.6,146.59,2.524]
[1718547963119,5.48,146.62,146.58,0.09020702]
[1718547963318,5.48,146.62,146.61,2.5237]
[1718547963623,8.6834,146.63,146.61,2.5236]
[1718547963832,5.48,146.62,146.6,2.5237]
[1718547964129,5.48,146.62,146.61,2.5237]
[1718547964418,5.99,146.62,146.6,2.5237]
[1718547964624,5.65,146.62,146.6,2.5237]
[1718547965020,5.65,146.62,146.61,2.5237]
[1718547965236,0.51,146.62,146.61,2.5237]
[1718547965420,5.99,146.62,146.61,2.5237]
[1718547965617,0.51,146.62,146.61,2.5237]
[1718547965935,5.99,146.62,146.61,2.5237]
[1718547966152,5.99,146.62,146.58,0.09020702]
[1718547966153,8.5135,146.62,146.6,2.5237]
[1718547966321,0.51,146.61,146.6,2.5237]
[1718547967331,0.34,146.61,146.6,2.5237]
[1718547967523,2.6933,146.63,146.61,2.5236]
[1718547967840,5.0461,146.65,146.58,5.57020702]
[1718547968138,15.138,146.65,146.62,2.5233]
[1718547968339,5.48,146.63,146.62,2.5233]
[1718547968510,5.48,146.63,146.61,2.5235]
[1718547968720,5.48,146.63,146.58,0.09020702]
[1718547969028,5.48,146.63,146.61,2.5235]
[1718547969344,5.99,146.62,146.6,2.5238]
[1718547969524,0.17,146.61,146.6,2.5238]
[1718547970151,200.0,146.67,146.58,0.09020702]
[1718547970357,5.48,146.63,146.61,2.5235]
[1718547970853,5.65,146.63,146.62,2.5235]
[1718547971031,6.16,146.63,146.62,2.5235]
[1718547971230,6.16,146.63,146.61,2.5235]
[1718547971231,8.6833,146.63,146.61,2.5235]
[1718547972154,13.73,146.63,146.61,2.5235]
[1718547972355,0.68,146.63,146.58,5.57020702]